[Event "Titled Tuesday Blitz June 13 Late 2023"]
[White "Diaz Rosas, Julio Cesar"]
[Black "Yang, Kevin"]
[WhiteFideId "5105099"]
[BlackFideId "30908485"]
[WhiteElo "2284"]
[BlackElo "2055"]
[Result "1-0"]
[Round "7"]
[TimeControl "180+2"]
[Date "2023.06.13"]
[WhiteClock "0:00:53"]
[BlackClock "0:00:00"]
[Board "106"]

1. e4 {[%clk 0:03:00]}  e6 {[%clk 0:02:55]} 2. d4 {[%clk 0:02:59]}  a6 {[%clk 0:02:54]} 3. Bd3 {[%clk 0:02:58]}  d5 {[%clk 0:02:54]} 4. e5 {[%clk 0:02:55]}  c5 {[%clk 0:02:54]} 5. c3 {[%clk 0:02:55]}  Nc6 {[%clk 0:02:55]} 6. Nf3 {[%clk 0:02:55]}  Nge7 {[%clk 0:02:52]} 7. O-O {[%clk 0:02:52]}  Ng6 {[%clk 0:02:50]} 8. Re1 {[%clk 0:02:50]}  Be7 {[%clk 0:02:49]} 9. g3 {[%clk 0:02:49]}  b6 {[%clk 0:02:37]} 10. h4 {[%clk 0:02:47]}  O-O {[%clk 0:02:30]} 11. h5 {[%clk 0:02:33]}  Nh8 {[%clk 0:02:31]} 12. a3 {[%clk 0:02:28]}  f6 {[%clk 0:02:27]} 13. Bf4 {[%clk 0:02:23]}  Nf7 {[%clk 0:02:20]} 14. Bc2 {[%clk 0:02:16]}  f5 {[%clk 0:02:05]} 15. Nh2 {[%clk 0:02:05]}  Bg5 {[%clk 0:02:01]} 16. Be3 {[%clk 0:01:50]}  Bxe3 {[%clk 0:01:56]} 17. Rxe3 {[%clk 0:01:51]}  Ng5 {[%clk 0:01:48]} 18. Nd2 {[%clk 0:01:44]}  cxd4 {[%clk 0:01:40]} 19. cxd4 {[%clk 0:01:45]}  f4 {[%clk 0:01:29]} 20. gxf4 {[%clk 0:01:45]}  Rxf4 {[%clk 0:01:27]} 21. Rg3 {[%clk 0:01:42]}  Nf7 {[%clk 0:01:12]} 22. Ndf3 {[%clk 0:01:38]}  Ne7 {[%clk 0:00:23]} 23. Qd2 {[%clk 0:01:31]}  Re4 {[%clk 0:00:21]} 24. Ng5 {[%clk 0:01:24]}  Nxg5 {[%clk 0:00:15]} 25. Qxg5 {[%clk 0:01:25]}  Qf8 {[%clk 0:00:15]} 26. Bxe4 {[%clk 0:01:16]}  dxe4 {[%clk 0:00:15]} 27. Ng4 {[%clk 0:01:15]}  Kh8 {[%clk 0:00:15]} 28. h6 {[%clk 0:01:13]}  g6 {[%clk 0:00:13]} 29. Rc1 {[%clk 0:01:04]}  Nf5 {[%clk 0:00:10]} 30. Rc7 {[%clk 0:00:55]}  Nxd4 {[%clk 0:00:03]} 31. Qf6+ {[%clk 0:00:52]}  Qxf6 {[%clk 0:00:00]} 32. Nxf6 {[%clk 0:00:53]} 1-0


[Site "https://www.chess.com"]

[Event "Titled Tuesday Blitz June 13 Late 2023"]
[White "Gasparyan, David"]
[Black "Martins, Vinicius Tine"]
[WhiteFideId "13311980"]
[BlackFideId "2112884"]
[WhiteElo "2430"]
[BlackElo "2373"]
[Result "1/2-1/2"]
[Round "7"]
[TimeControl "180+2"]
[Date "2023.06.13"]
[WhiteClock "0:00:07"]
[BlackClock "0:00:19"]
[Board "107"]

1. Nf3 {[%clk 0:03:00]}  d5 {[%clk 0:02:58]} 2. g3 {[%clk 0:03:00]}  g6 {[%clk 0:02:55]} 3. Bg2 {[%clk 0:03:00]}  Bg7 {[%clk 0:02:56]} 4. d4 {[%clk 0:03:00]}  c6 {[%clk 0:02:46]} 5. O-O {[%clk 0:03:00]}  Nd7 {[%clk 0:02:46]} 6. Bf4 {[%clk 0:02:33]}  Ngf6 {[%clk 0:02:43]} 7. Ne5 {[%clk 0:02:30]}  O-O {[%clk 0:02:40]} 8. Nd2 {[%clk 0:02:26]}  Nxe5 {[%clk 0:02:07]} 9. Bxe5 {[%clk 0:02:26]}  Nd7 {[%clk 0:02:08]} 10. Bxg7 {[%clk 0:02:26]}  Kxg7 {[%clk 0:02:08]} 11. c4 {[%clk 0:02:23]}  dxc4 {[%clk 0:02:08]} 12. Nxc4 {[%clk 0:02:24]}  Nb6 {[%clk 0:02:08]} 13. Ne3 {[%clk 0:02:08]}  Be6 {[%clk 0:02:07]} 14. Qd3 {[%clk 0:02:06]}  Qd6 {[%clk 0:02:03]} 15. Rfd1 {[%clk 0:02:06]}  Rfd8 {[%clk 0:02:01]} 16. Rac1 {[%clk 0:01:57]}  Rd7 {[%clk 0:01:48]} 17. Qc3 {[%clk 0:01:53]}  f6 {[%clk 0:01:34]} 18. Qa5 {[%clk 0:01:39]}  Nd5 {[%clk 0:01:22]} 19. Nc4 {[%clk 0:01:35]}  Qc7 {[%clk 0:01:20]} 20. a3 {[%clk 0:01:29]}  Qxa5 {[%clk 0:01:11]} 21. Nxa5 {[%clk 0:01:29]}  Nb6 {[%clk 0:01:12]} 22. e3 {[%clk 0:01:09]}  Rad8 {[%clk 0:01:08]} 23. Rd3 {[%clk 0:00:50]}  Bf5 {[%clk 0:00:59]} 24. Rb3 {[%clk 0:00:47]}  e5 {[%clk 0:00:51]} 25. e4 {[%clk 0:00:28]}  Be6 {[%clk 0:00:50]} 26. d5 {[%clk 0:00:28]}  cxd5 {[%clk 0:00:49]} 27. exd5 {[%clk 0:00:29]}  Bxd5 {[%clk 0:00:48]} 28. Bxd5 {[%clk 0:00:29]}  Rxd5 {[%clk 0:00:35]} 29. Nxb7 {[%clk 0:00:29]}  R8d7 {[%clk 0:00:35]} 30. Nc5 {[%clk 0:00:26]}  Re7 {[%clk 0:00:34]} 31. Na6 {[%clk 0:00:21]}  Rd2 {[%clk 0:00:31]} 32. Kf1 {[%clk 0:00:10]}  e4 {[%clk 0:00:29]} 33. Ke1 {[%clk 0:00:10]}  Rd8 {[%clk 0:00:27]} 34. Rbc3 {[%clk 0:00:08]}  Nd5 {[%clk 0:00:22]} 35. Rc8 {[%clk 0:00:09]}  Rd6 {[%clk 0:00:19]} 36. R1c6 {[%clk 0:00:06]}  Rxc6 {[%clk 0:00:18]} 37. Rxc6 {[%clk 0:00:07]}  e3 {[%clk 0:00:18]} 38. fxe3 {[%clk 0:00:07]}  Nxe3 {[%clk 0:00:19]} 39. Kf2 {[%clk 0:00:06]}  Nd1+ {[%clk 0:00:19]} 40. Kf3 {[%clk 0:00:05]}  Nxb2 {[%clk 0:00:20]} 41. Rc7 {[%clk 0:00:04]}  Rxc7 {[%clk 0:00:16]} 42. Nxc7 {[%clk 0:00:05]}  Nc4 {[%clk 0:00:16]} 43. Nb5 {[%clk 0:00:06]}  a6 {[%clk 0:00:16]} 44. Nc7 {[%clk 0:00:07]}  Nxa3 {[%clk 0:00:16]} 45. Nxa6 {[%clk 0:00:07]}  Nc4 {[%clk 0:00:17]} 46. Nc5 {[%clk 0:00:07]}  Ne5+ {[%clk 0:00:17]} 47. Kg2 {[%clk 0:00:07]}  h5 {[%clk 0:00:18]} 48. Ne6+ {[%clk 0:00:07]}  Kf7 {[%clk 0:00:18]} 49. Nd4 {[%clk 0:00:07]}  Ke7 {[%clk 0:00:17]} 50. h3 {[%clk 0:00:07]}  Kd6 {[%clk 0:00:18]} 51. Kf2 {[%clk 0:00:08]}  Kd5 {[%clk 0:00:17]} 52. Nc2 {[%clk 0:00:08]}  Ke4 {[%clk 0:00:17]} 53. Na3 {[%clk 0:00:04]}  Kd3 {[%clk 0:00:15]} 54. Nb5 {[%clk 0:00:04]}  f5 {[%clk 0:00:14]} 55. Nc7 {[%clk 0:00:03]}  Kd4 {[%clk 0:00:13]} 56. Ne6+ {[%clk 0:00:03]}  Kd5 {[%clk 0:00:14]} 57. Nf4+ {[%clk 0:00:04]}  Kd6 {[%clk 0:00:14]} 58. Ne2 {[%clk 0:00:04]}  Ke6 {[%clk 0:00:14]} 59. Nd4+ {[%clk 0:00:04]}  Kf6 {[%clk 0:00:15]} 60. Ne2 {[%clk 0:00:05]}  g5 {[%clk 0:00:15]} 61. Ke3 {[%clk 0:00:05]}  Ng6 {[%clk 0:00:15]} 62. Nd4 {[%clk 0:00:05]}  h4 {[%clk 0:00:15]} 63. gxh4 {[%clk 0:00:05]}  Nxh4 {[%clk 0:00:16]} 64. Ne2 {[%clk 0:00:05]}  Ng6 {[%clk 0:00:16]} 65. Nd4 {[%clk 0:00:05]}  Ke5 {[%clk 0:00:16]} 66. Nc6+ {[%clk 0:00:05]}  Ke6 {[%clk 0:00:16]} 67. Nd4+ {[%clk 0:00:05]}  Kf6 {[%clk 0:00:17]} 68. Nc6 {[%clk 0:00:05]}  Nf4 {[%clk 0:00:17]} 69. h4 {[%clk 0:00:05]}  Ng2+ {[%clk 0:00:17]} 70. Kf3 {[%clk 0:00:06]}  Nxh4+ {[%clk 0:00:18]} 71. Kg3 {[%clk 0:00:06]}  Ng6 {[%clk 0:00:19]} 72. Nd4 {[%clk 0:00:06]}  Ne5 {[%clk 0:00:19]} 73. Ne2 {[%clk 0:00:06]}  f4+ {[%clk 0:00:20]} 74. Nxf4 {[%clk 0:00:07]}  Kf5 {[%clk 0:00:20]} 75. Ne2 {[%clk 0:00:07]}  g4 {[%clk 0:00:19]} 76. Nd4+ {[%clk 0:00:07]}  Kg5 {[%clk 0:00:18]} 77. Ne6+ {[%clk 0:00:07]}  Kf5 {[%clk 0:00:19]} 78. Nd4+ {[%clk 0:00:06]}  Ke4 {[%clk 0:00:19]} 79. Ne2 {[%clk 0:00:06]}  Ke3 {[%clk 0:00:18]} 80. Nf4 {[%clk 0:00:07]}  Ke4 {[%clk 0:00:19]} 81. Ne2 {[%clk 0:00:07]}  Kf5 {[%clk 0:00:19]} 82. Nd4+ {[%clk 0:00:07]} 1/2-1/2


[Site "https://www.chess.com"]

[Event "Titled Tuesday Blitz June 13 Late 2023"]
[White "Prydun, Andriy"]
[Black "Jakic, Ivan"]
[WhiteFideId "14145898"]
[BlackFideId "14504901"]
[WhiteElo "2164"]
[BlackElo "2365"]
[Result "1-0"]
[Round "7"]
[TimeControl "180+2"]
[Date "2023.06.13"]
[WhiteClock "0:00:10"]
[BlackClock "0:00:02"]
[Board "109"]

1. e4 {[%clk 0:03:00]}  c5 {[%clk 0:02:59]} 2. Nf3 {[%clk 0:03:00]}  d6 {[%clk 0:02:59]} 3. c3 {[%clk 0:02:59]}  Nf6 {[%clk 0:02:59]} 4. h3 {[%clk 0:02:59]}  g6 {[%clk 0:02:58]} 5. Bd3 {[%clk 0:02:59]}  Bg7 {[%clk 0:02:58]} 6. O-O {[%clk 0:02:58]}  O-O {[%clk 0:02:58]} 7. Bc2 {[%clk 0:02:58]}  e5 {[%clk 0:02:52]} 8. d3 {[%clk 0:02:57]}  Nc6 {[%clk 0:02:52]} 9. Nbd2 {[%clk 0:02:57]}  d5 {[%clk 0:02:51]} 10. Qe2 {[%clk 0:02:57]}  Re8 {[%clk 0:02:51]} 11. Re1 {[%clk 0:02:56]}  h6 {[%clk 0:02:51]} 12. a3 {[%clk 0:02:53]}  Be6 {[%clk 0:02:50]} 13. exd5 {[%clk 0:02:22]}  Nxd5 {[%clk 0:02:49]} 14. Ne4 {[%clk 0:02:16]}  b6 {[%clk 0:02:47]} 15. Bd2 {[%clk 0:02:13]}  f5 {[%clk 0:02:47]} 16. Ng3 {[%clk 0:02:14]}  Bf7 {[%clk 0:02:47]} 17. Qf1 {[%clk 0:02:12]}  Qd7 {[%clk 0:02:46]} 18. Rad1 {[%clk 0:02:11]}  Rad8 {[%clk 0:02:45]} 19. Bc1 {[%clk 0:02:10]}  Kh7 {[%clk 0:02:45]} 20. Ba4 {[%clk 0:01:52]}  a6 {[%clk 0:02:37]} 21. h4 {[%clk 0:01:23]}  b5 {[%clk 0:02:35]} 22. Bc2 {[%clk 0:01:22]}  Nf4 {[%clk 0:02:35]} 23. Bxf4 {[%clk 0:01:19]}  exf4 {[%clk 0:02:34]} 24. Ne2 {[%clk 0:01:19]}  Qd6 {[%clk 0:02:32]} 25. h5 {[%clk 0:01:12]}  g5 {[%clk 0:02:08]} 26. d4 {[%clk 0:01:11]}  Bxh5 {[%clk 0:01:56]} 27. Bxf5+ {[%clk 0:01:07]}  Kh8 {[%clk 0:01:56]} 28. dxc5 {[%clk 0:00:44]}  Qxc5 {[%clk 0:01:55]} 29. Rxd8 {[%clk 0:00:43]}  Rxd8 {[%clk 0:01:47]} 30. Bb1 {[%clk 0:00:43]}  Bxf3 {[%clk 0:01:42]} 31. gxf3 {[%clk 0:00:44]}  Rd2 {[%clk 0:01:31]} 32. Qh3 {[%clk 0:00:43]}  Ne5 {[%clk 0:01:24]} 33. Be4 {[%clk 0:00:40]}  g4 {[%clk 0:01:03]} 34. fxg4 {[%clk 0:00:33]}  f3 {[%clk 0:01:00]} 35. Nd4 {[%clk 0:00:32]}  Nf7 {[%clk 0:00:40]} 36. Qxf3 {[%clk 0:00:26]}  Bxd4 {[%clk 0:00:35]} 37. Qxf7 {[%clk 0:00:19]}  Bxf2+ {[%clk 0:00:34]} 38. Kh1 {[%clk 0:00:19]}  Rd7 {[%clk 0:00:09]} 39. Qxd7 {[%clk 0:00:17]}  Kg8 {[%clk 0:00:06]} 40. Qe8+ {[%clk 0:00:14]}  Kg7 {[%clk 0:00:06]} 41. Rf1 {[%clk 0:00:12]}  Qe3 {[%clk 0:00:03]} 42. Qg6+ {[%clk 0:00:10]}  Kf8 {[%clk 0:00:03]} 43. Qf6+ {[%clk 0:00:10]}  Ke8 {[%clk 0:00:02]} 44. Bc6# {[%clk 0:00:10]} 1-0


[Site "https://www.chess.com"]

[Event "Titled Tuesday Blitz June 13 Late 2023"]
[White "Zavortink, Matt"]
[Black "Melikhov, Evgeny V."]
[WhiteFideId "2034263"]
[BlackFideId "4122046"]
[WhiteElo "2473"]
[BlackElo "2158"]
[Result "1/2-1/2"]
[Round "7"]
[TimeControl "180+2"]
[Date "2023.06.13"]
[WhiteClock "0:00:07"]
[BlackClock "0:00:29"]
[Board "111"]

1. d4 {[%clk 0:03:00]}  Nf6 {[%clk 0:02:59]} 2. Bf4 {[%clk 0:03:00]}  d5 {[%clk 0:02:55]} 3. e3 {[%clk 0:02:59]}  e6 {[%clk 0:02:54]} 4. Nf3 {[%clk 0:02:58]}  Bd6 {[%clk 0:02:53]} 5. Ne5 {[%clk 0:02:58]}  O-O {[%clk 0:02:51]} 6. Bd3 {[%clk 0:02:58]}  c5 {[%clk 0:02:45]} 7. c3 {[%clk 0:02:58]}  Qc7 {[%clk 0:02:44]} 8. Bg3 {[%clk 0:02:51]}  Nbd7 {[%clk 0:02:41]} 9. f4 {[%clk 0:02:51]}  cxd4 {[%clk 0:02:31]} 10. exd4 {[%clk 0:02:50]}  Ne4 {[%clk 0:02:23]} 11. Nd2 {[%clk 0:02:44]}  f5 {[%clk 0:02:18]} 12. Bh4 {[%clk 0:02:39]}  Ndf6 {[%clk 0:02:14]} 13. O-O {[%clk 0:02:35]}  Nxd2 {[%clk 0:02:07]} 14. Qxd2 {[%clk 0:02:35]}  Ne4 {[%clk 0:02:08]} 15. Qe2 {[%clk 0:02:32]}  Bxe5 {[%clk 0:02:03]} 16. fxe5 {[%clk 0:02:31]}  Bd7 {[%clk 0:01:56]} 17. g4 {[%clk 0:02:16]}  fxg4 {[%clk 0:01:46]} 18. Qxg4 {[%clk 0:02:11]}  Rxf1+ {[%clk 0:01:14]} 19. Rxf1 {[%clk 0:02:10]}  Rf8 {[%clk 0:01:14]} 20. Rxf8+ {[%clk 0:02:01]}  Kxf8 {[%clk 0:01:14]} 21. Bxe4 {[%clk 0:01:50]}  dxe4 {[%clk 0:01:14]} 22. Qxe4 {[%clk 0:01:51]}  Kg8 {[%clk 0:01:12]} 23. d5 {[%clk 0:01:02]}  Qc5+ {[%clk 0:01:11]} 24. Qd4 {[%clk 0:01:01]}  Qxd5 {[%clk 0:01:03]} 25. Qxd5 {[%clk 0:00:57]}  exd5 {[%clk 0:01:03]} 26. Kf2 {[%clk 0:00:58]}  Kf7 {[%clk 0:01:03]} 27. Ke3 {[%clk 0:00:57]}  Ke6 {[%clk 0:01:03]} 28. Kd4 {[%clk 0:00:57]}  h6 {[%clk 0:01:02]} 29. Be1 {[%clk 0:00:55]}  g5 {[%clk 0:00:59]} 30. Bd2 {[%clk 0:00:51]}  Bc6 {[%clk 0:00:58]} 31. b3 {[%clk 0:00:50]}  Kf5 {[%clk 0:00:56]} 32. Be1 {[%clk 0:00:42]}  h5 {[%clk 0:00:54]} 33. a4 {[%clk 0:00:38]}  h4 {[%clk 0:00:50]} 34. b4 {[%clk 0:00:26]}  a6 {[%clk 0:00:49]} 35. b5 {[%clk 0:00:22]}  axb5 {[%clk 0:00:49]} 36. axb5 {[%clk 0:00:23]}  Bxb5 {[%clk 0:00:49]} 37. Kxd5 {[%clk 0:00:23]}  Ba4 {[%clk 0:00:44]} 38. c4 {[%clk 0:00:18]}  Bb3 {[%clk 0:00:42]} 39. e6 {[%clk 0:00:12]}  b5 {[%clk 0:00:33]} 40. e7 {[%clk 0:00:08]}  Bxc4+ {[%clk 0:00:33]} 41. Kc5 {[%clk 0:00:06]}  Bf7 {[%clk 0:00:32]} 42. Kxb5 {[%clk 0:00:06]}  Ke6 {[%clk 0:00:29]} 43. Bb4 {[%clk 0:00:05]}  g4 {[%clk 0:00:30]} 44. Be1 {[%clk 0:00:05]}  g3 {[%clk 0:00:29]} 45. Bxg3 {[%clk 0:00:04]}  hxg3 {[%clk 0:00:29]} 46. hxg3 {[%clk 0:00:04]}  Kxe7 {[%clk 0:00:29]} 47. Kc5 {[%clk 0:00:05]}  Kf6 {[%clk 0:00:29]} 48. Kd4 {[%clk 0:00:06]}  Kg5 {[%clk 0:00:29]} 49. Ke3 {[%clk 0:00:07]}  Kg4 {[%clk 0:00:29]} 50. Ke2 {[%clk 0:00:07]}  Kxg3 {[%clk 0:00:29]} 1/2-1/2


[Site "https://www.chess.com"]

[Event "Titled Tuesday Blitz June 13 Late 2023"]
[White "Burdalev, Kirill"]
[Black "Krishnakumar, Sriram"]
[WhiteFideId "14121913"]
[BlackFideId "30915856"]
[WhiteElo "2236"]
[BlackElo "2472"]
[Result "1-0"]
[Round "7"]
[TimeControl "180+2"]
[Date "2023.06.13"]
[WhiteClock "0:00:14"]
[BlackClock "0:01:00"]
[Board "112"]

1. e4 {[%clk 0:02:54]}  e5 {[%clk 0:02:59]} 2. Nf3 {[%clk 0:02:53]}  Nc6 {[%clk 0:02:59]} 3. d4 {[%clk 0:02:52]}  exd4 {[%clk 0:02:58]} 4. Nxd4 {[%clk 0:02:53]}  Nf6 {[%clk 0:02:58]} 5. Nxc6 {[%clk 0:02:52]}  bxc6 {[%clk 0:02:59]} 6. e5 {[%clk 0:02:52]}  Qe7 {[%clk 0:02:59]} 7. Qe2 {[%clk 0:02:53]}  Nd5 {[%clk 0:02:59]} 8. h4 {[%clk 0:02:54]}  d6 {[%clk 0:02:57]} 9. c4 {[%clk 0:02:38]}  Nb6 {[%clk 0:02:52]} 10. f4 {[%clk 0:02:14]}  dxe5 {[%clk 0:02:46]} 11. fxe5 {[%clk 0:02:11]}  Qe6 {[%clk 0:02:46]} 12. Nc3 {[%clk 0:02:04]}  Bb4 {[%clk 0:02:45]} 13. Bd2 {[%clk 0:02:02]}  Ba6 {[%clk 0:02:44]} 14. b3 {[%clk 0:02:01]}  O-O-O {[%clk 0:02:43]} 15. O-O-O {[%clk 0:01:57]}  Qg6 {[%clk 0:02:30]} 16. Kb2 {[%clk 0:01:48]}  Rhe8 {[%clk 0:02:26]} 17. Rh3 {[%clk 0:01:46]}  f6 {[%clk 0:02:20]} 18. e6 {[%clk 0:01:31]}  f5 {[%clk 0:02:18]} 19. Re3 {[%clk 0:01:06]}  f4 {[%clk 0:02:13]} 20. Re5 {[%clk 0:01:06]}  Re7 {[%clk 0:02:10]} 21. Bxf4 {[%clk 0:01:00]}  Bxc3+ {[%clk 0:02:02]} 22. Kxc3 {[%clk 0:01:01]}  Rxd1 {[%clk 0:02:00]} 23. Qxd1 {[%clk 0:01:01]}  Qf6 {[%clk 0:02:01]} 24. Qd4 {[%clk 0:00:48]}  Rxe6 {[%clk 0:01:53]} 25. Rxe6 {[%clk 0:00:39]}  Qxe6 {[%clk 0:01:54]} 26. Bd3 {[%clk 0:00:37]}  Qe1+ {[%clk 0:01:51]} 27. Kb2 {[%clk 0:00:34]}  g6 {[%clk 0:01:48]} 28. Qe5 {[%clk 0:00:33]}  Qxe5+ {[%clk 0:01:46]} 29. Bxe5 {[%clk 0:00:33]}  Nd7 {[%clk 0:01:47]} 30. Bg7 {[%clk 0:00:32]}  c5 {[%clk 0:01:46]} 31. g4 {[%clk 0:00:26]}  Bb7 {[%clk 0:01:45]} 32. h5 {[%clk 0:00:25]}  Bf3 {[%clk 0:01:38]} 33. Bxg6 {[%clk 0:00:16]}  hxg6 {[%clk 0:01:39]} 34. h6 {[%clk 0:00:15]}  Ne5 {[%clk 0:01:00]} 35. Bxe5 {[%clk 0:00:12]}  Bxg4 {[%clk 0:00:56]} 36. h7 {[%clk 0:00:12]}  Kb7 {[%clk 0:00:57]} 37. h8=Q {[%clk 0:00:13]}  Bd7 {[%clk 0:00:57]} 38. Qd8 {[%clk 0:00:13]}  Bc6 {[%clk 0:00:58]} 39. Qxc7+ {[%clk 0:00:13]}  Ka6 {[%clk 0:00:59]} 40. Qxc6+ {[%clk 0:00:13]}  Ka5 {[%clk 0:01:00]} 41. Qb5# {[%clk 0:00:14]} 1-0


[Site "https://www.chess.com"]

[Event "Titled Tuesday Blitz June 13 Late 2023"]
[White "DampFalcon"]
[Black "Castella Garcia, Fausto"]
[BlackFideId "3501922"]
[WhiteElo "2136"]
[BlackElo "2245"]
[Result "1-0"]
[Round "7"]
[TimeControl "180+2"]
[Date "2023.06.13"]
[WhiteClock "0:00:36"]
[BlackClock "0:00:07"]
[Board "114"]

1. e4 {[%clk 0:03:00]}  c5 {[%clk 0:02:59]} 2. Nf3 {[%clk 0:03:00]}  Nf6 {[%clk 0:02:59]} 3. e5 {[%clk 0:02:43]}  Nd5 {[%clk 0:02:58]} 4. c4 {[%clk 0:02:43]}  Nb4 {[%clk 0:02:58]} 5. a3 {[%clk 0:02:44]}  N4c6 {[%clk 0:02:58]} 6. Nc3 {[%clk 0:02:43]}  e6 {[%clk 0:02:56]} 7. d3 {[%clk 0:02:43]}  a6 {[%clk 0:02:43]} 8. Bg5 {[%clk 0:02:43]}  Qc7 {[%clk 0:02:40]} 9. Bf4 {[%clk 0:02:39]}  f6 {[%clk 0:02:38]} 10. Bg3 {[%clk 0:02:28]}  f5 {[%clk 0:02:27]} 11. Ng5 {[%clk 0:02:24]}  g6 {[%clk 0:02:25]} 12. f4 {[%clk 0:02:23]}  h6 {[%clk 0:02:24]} 13. Nf3 {[%clk 0:02:22]}  Nd4 {[%clk 0:02:21]} 14. Nxd4 {[%clk 0:02:21]}  cxd4 {[%clk 0:02:22]} 15. Ne2 {[%clk 0:02:21]}  Nc6 {[%clk 0:02:22]} 16. Bf2 {[%clk 0:02:19]}  Qa5+ {[%clk 0:02:14]} 17. Qd2 {[%clk 0:01:55]}  Bb4 {[%clk 0:02:13]} 18. axb4 {[%clk 0:01:56]}  Qxa1+ {[%clk 0:02:13]} 19. Nc1 {[%clk 0:01:51]}  b5 {[%clk 0:01:51]} 20. Be2 {[%clk 0:01:42]}  Bb7 {[%clk 0:01:43]} 21. O-O {[%clk 0:01:41]}  Qa4 {[%clk 0:01:31]} 22. Be1 {[%clk 0:01:40]}  bxc4 {[%clk 0:01:27]} 23. dxc4 {[%clk 0:01:38]}  O-O {[%clk 0:01:08]} 24. Bd1 {[%clk 0:01:32]}  Qa1 {[%clk 0:01:05]} 25. Nb3 {[%clk 0:01:30]}  Qb1 {[%clk 0:01:02]} 26. Bf3 {[%clk 0:01:04]}  d3 {[%clk 0:00:50]} 27. Nc5 {[%clk 0:00:58]}  Rab8 {[%clk 0:00:43]} 28. Nxd7 {[%clk 0:00:54]}  Nd4 {[%clk 0:00:34]} 29. Bxb7 {[%clk 0:00:50]}  Rxb7 {[%clk 0:00:35]} 30. Nxf8 {[%clk 0:00:50]}  Ne2+ {[%clk 0:00:27]} 31. Kf2 {[%clk 0:00:47]}  Kxf8 {[%clk 0:00:28]} 32. c5 {[%clk 0:00:45]}  Qc2 {[%clk 0:00:26]} 33. Qxc2 {[%clk 0:00:43]}  dxc2 {[%clk 0:00:26]} 34. Bd2 {[%clk 0:00:43]}  Nd4 {[%clk 0:00:23]} 35. Rc1 {[%clk 0:00:42]}  a5 {[%clk 0:00:20]} 36. Ke3 {[%clk 0:00:39]}  Rd7 {[%clk 0:00:19]} 37. Bc3 {[%clk 0:00:37]}  Nb3 {[%clk 0:00:19]} 38. Rxc2 {[%clk 0:00:37]}  axb4 {[%clk 0:00:17]} 39. Bxb4 {[%clk 0:00:37]}  Nd4 {[%clk 0:00:07]} 40. c6+ {[%clk 0:00:36]} 1-0


[Site "https://www.chess.com"]

[Event "Titled Tuesday Blitz June 13 Late 2023"]
[White "Zherebtsova, Alexandra"]
[Black "Sadovsky, Artem"]
[WhiteFideId "24129518"]
[BlackFideId "4155840"]
[WhiteElo "2055"]
[BlackElo "2314"]
[Result "0-1"]
[Round "7"]
[TimeControl "180+2"]
[Date "2023.06.13"]
[WhiteClock "0:00:01"]
[BlackClock "0:00:15"]
[Board "116"]

1. d4 {[%clk 0:03:00]}  g6 {[%clk 0:02:52]} 2. c4 {[%clk 0:02:59]}  Bg7 {[%clk 0:02:53]} 3. Nc3 {[%clk 0:03:00]}  d6 {[%clk 0:02:51]} 4. e4 {[%clk 0:03:00]}  e5 {[%clk 0:02:51]} 5. d5 {[%clk 0:02:59]}  f5 {[%clk 0:02:50]} 6. f4 {[%clk 0:02:54]}  exf4 {[%clk 0:02:43]} 7. Bxf4 {[%clk 0:02:54]}  Nf6 {[%clk 0:02:43]} 8. exf5 {[%clk 0:02:49]}  Bxf5 {[%clk 0:02:43]} 9. Bd3 {[%clk 0:02:49]}  Bxd3 {[%clk 0:02:41]} 10. Qxd3 {[%clk 0:02:48]}  O-O {[%clk 0:02:39]} 11. O-O-O {[%clk 0:02:33]}  Ng4 {[%clk 0:02:23]} 12. Nh3 {[%clk 0:02:26]}  Nd7 {[%clk 0:01:54]} 13. Qg3 {[%clk 0:02:11]}  Nde5 {[%clk 0:01:49]} 14. Ng5 {[%clk 0:01:47]}  Bh6 {[%clk 0:01:23]} 15. Ne6 {[%clk 0:01:34]}  Rxf4 {[%clk 0:01:12]} 16. Nxf4 {[%clk 0:01:17]}  Qf6 {[%clk 0:01:12]} 17. Rhf1 {[%clk 0:01:07]}  Rf8 {[%clk 0:01:12]} 18. Ne2 {[%clk 0:01:05]}  Nxc4 {[%clk 0:01:11]} 19. Qb3 {[%clk 0:00:30]}  Nge3 {[%clk 0:01:08]} 20. g3 {[%clk 0:00:16]}  Nxf1 {[%clk 0:01:01]} 21. Rxf1 {[%clk 0:00:14]}  Nb6 {[%clk 0:00:52]} 22. Rd1 {[%clk 0:00:14]}  Qe5 {[%clk 0:00:51]} 23. Qc2 {[%clk 0:00:11]}  Nxd5 {[%clk 0:00:46]} 24. Kb1 {[%clk 0:00:10]}  Ne3 {[%clk 0:00:38]} 25. Qb3+ {[%clk 0:00:08]}  Kh8 {[%clk 0:00:38]} 26. Rd3 {[%clk 0:00:08]}  Nf5 {[%clk 0:00:36]} 27. Qxb7 {[%clk 0:00:06]}  Bxf4 {[%clk 0:00:33]} 28. Nxf4 {[%clk 0:00:06]}  Qe1+ {[%clk 0:00:33]} 29. Kc2 {[%clk 0:00:06]}  Qf2+ {[%clk 0:00:25]} 30. Kb3 {[%clk 0:00:05]}  Nd4+ {[%clk 0:00:19]} 31. Ka3 {[%clk 0:00:05]}  Nc2+ {[%clk 0:00:18]} 32. Kb3 {[%clk 0:00:05]}  Na1+ {[%clk 0:00:18]} 33. Ka3 {[%clk 0:00:05]}  Qc5+ {[%clk 0:00:18]} 34. b4 {[%clk 0:00:04]}  Qc4 {[%clk 0:00:14]} 35. Qd5 {[%clk 0:00:02]}  Nc2+ {[%clk 0:00:15]} 36. Ka4 {[%clk 0:00:01]}  Qxb4# {[%clk 0:00:15]} 0-1


[Site "https://www.chess.com"]